[Event "15e Open International de Quenza"]
[Site "Quenza"]
[Date "2026.07.05"]
[Round "3.11"]
[White "UTRERA, Ludovic"]
[Black "KOSTENIUK, Alexandra"]
[Result "0-1"]
[TimeControl "5min+3s"]
[WhiteTitle "-"]
[BlackTitle "GM"]
[WhiteFideId "-"]
[BlackFideId "-"]
[WhiteElo "2067"]
[BlackElo "2392"]

1. e4 {[%clk 00:05:03]} c6 {[%clk 00:05:03]} {[%emt 00:00:01]} 2. d4 {[%clk
00:05:01]} {[%emt 00:00:05]} d5 {[%clk 00:05:03]} 3. e5 {[%emt 00:00:02]} c5 4.
c3 {[%clk 00:05:01]} {[%emt 00:00:03]} Nc6 {[%clk 00:05:02]} {[%emt 00:00:04]}
5. Be2 {[%clk 00:05:01]} {[%emt 00:00:01]} Bf5 {[%clk 00:05:01]} {[%emt
00:00:04]} 6. Nf3 {[%clk 00:05:00]} {[%emt 00:00:04]} e6 {[%clk 00:05:01]}
{[%emt 00:00:01]} 7. O-O {[%clk 00:04:59]} {[%emt 00:00:03]} cxd4 {[%clk
00:04:58]} {[%emt 00:00:06]} 8. Nxd4 {[%clk 00:04:58]} {[%emt 00:00:04]} Bg6
{[%clk 00:04:51]} {[%emt 00:00:11]} 9. f4 {[%clk 00:04:38]} {[%emt 00:00:23]}
Bc5 {[%clk 00:04:40]} {[%emt 00:00:13]} 10. Kh1 {[%clk 00:04:38]} {[%emt
00:00:02]} Nge7 {[%clk 00:04:34]} {[%emt 00:00:09]} 11. Nxc6 {[%clk 00:04:08]}
{[%emt 00:00:32]} bxc6 {[%clk 00:04:27]} {[%emt 00:00:11]} 12. Na3 {[%clk
00:03:33]} {[%emt 00:00:38]} Nf5 {[%clk 00:04:26]} {[%emt 00:00:03]} 13. Nc2
{[%emt 00:00:05]} h5 {[%clk 00:04:18]} {[%emt 00:00:10]} 14. Nd4 {[%clk
00:03:24]} {[%emt 00:00:11]} Bxd4 {[%clk 00:04:18]} {[%emt 00:00:02]} 15. cxd4
{[%clk 00:03:24]} Qb6 {[%clk 00:04:18]} 16. Bd3 {[%clk 00:02:55]} {[%emt
00:00:31]} Qxd4 {[%clk 00:03:57]} {[%emt 00:00:24]} 17. Bxf5 {[%clk 00:02:55]}
{[%emt 00:00:02]} Qxd1 {[%clk 00:03:57]} {[%emt 00:00:01]} 18. Rxd1 {[%clk
00:02:55]} Bxf5 {[%clk 00:03:57]} 19. Be3 {[%clk 00:02:54]} {[%emt 00:00:04]}
Kd7 {[%clk 00:03:57]} 20. b4 {[%clk 00:02:53]} {[%emt 00:00:04]} Rhb8 {[%clk
00:03:54]} {[%emt 00:00:06]} 21. a3 {[%clk 00:02:53]} {[%emt 00:00:02]} a5
{[%clk 00:03:54]} 22. Bc5 {[%clk 00:02:53]} {[%emt 00:00:01]} f6 {[%clk
00:03:40]} {[%emt 00:00:17]} 23. Kg1 {[%clk 00:02:50]} {[%emt 00:00:06]} Ra6
{[%clk 00:03:28]} {[%emt 00:00:15]} 24. Kf2 {[%clk 00:02:50]} {[%emt 00:00:03]}
Rba8 {[%clk 00:03:27]} {[%emt 00:00:04]} 25. Rac1 {[%clk 00:02:40]} {[%emt
00:00:14]} axb4 {[%clk 00:03:27]} {[%emt 00:00:02]} 26. Bxb4 {[%clk 00:02:40]}
Rb8 {[%clk 00:02:32]} {[%emt 00:00:58]} 27. Rc3 {[%clk 00:02:32]} {[%emt
00:00:11]} Rab6 {[%clk 00:02:31]} {[%emt 00:00:04]} 28. Rg3 {[%clk 00:02:31]}
{[%emt 00:00:04]} Bg4 {[%clk 00:02:10]} {[%emt 00:00:24]} 29. Rc1 {[%clk
00:02:29]} {[%emt 00:00:05]} fxe5 {[%clk 00:01:15]} {[%emt 00:00:58]} 30. fxe5
{[%clk 00:02:28]} {[%emt 00:00:04]} g6 {[%clk 00:01:15]} {[%emt 00:00:01]} 31.
h3 {[%clk 00:02:16]} {[%emt 00:00:15]} Bf5 {[%clk 00:01:15]} 32. Rf3 {[%clk
00:02:16]} {[%emt 00:00:02]} h4 {[%clk 00:01:01]} {[%emt 00:00:16]} 33. Rfc3
{[%clk 00:01:31]} {[%emt 00:00:48]} Rh8 {[%clk 00:01:00]} {[%emt 00:00:04]} 34.
Rc5 {[%clk 00:01:28]} {[%emt 00:00:07]} Rh5 {[%clk 00:01:00]} {[%emt 00:00:02]}
35. Ra5 {[%clk 00:01:28]} {[%emt 00:00:01]} Be4 {[%clk 00:00:58]} {[%emt
00:00:06]} 36. Ra7+ {[%clk 00:01:28]} {[%emt 00:00:03]} Kc8 {[%clk 00:00:58]}
37. Bd6 {[%clk 00:01:08]} {[%emt 00:00:23]} Rg5 {[%clk 00:00:46]} {[%emt
00:00:14]} 38. Rc7+ {[%clk 00:00:32]} {[%emt 00:00:40]} Kd8 {[%clk 00:00:46]}
39. Be7+ {[%clk 00:00:11]} {[%emt 00:00:25]} Kxc7 40. Bxg5 Rb2+ {[%clk
00:00:46]} {[%emt 00:00:02]} 41. Ke3 {[%clk 00:00:11]} Rxg2 {[%clk 00:00:38]}
{[%emt 00:00:11]} 42. Bxh4 {[%clk 00:00:11]} Rh2 {[%clk 00:00:38]} {[%emt
00:00:01]} 43. Be7 {[%clk 00:00:09]} {[%emt 00:00:06]} Rxh3+ {[%clk 00:00:38]}
{[%emt 00:00:02]} 44. Kd4 {[%clk 00:00:09]} Rd3+ {[%clk 00:00:38]} {[%emt
00:00:01]} 45. Kc5 {[%clk 00:00:09]} {[%emt 00:00:01]} Rxa3 {[%clk 00:00:36]}
{[%emt 00:00:06]} 46. Rc3 {[%clk 00:00:08]} {[%emt 00:00:03]} Rxc3+ {[%clk
00:00:36]} {[%emt 00:00:02]} 47. Kd4 {[%emt 00:00:04]} 0-1

[Event "15e Open International de Quenza"]
[Site "Quenza"]
[Date "2026.07.05"]
[Round "3.2"]
[White "BATSIASHVILI, Nino"]
[Black "LAGARDE, Maxime"]
[Result "0-1"]
[TimeControl "5min+3s"]
[WhiteTitle "GM"]
[BlackTitle "GM"]
[WhiteFideId "-"]
[BlackFideId "-"]
[WhiteElo "2306"]
[BlackElo "2583"]

1. d4 {[%clk 00:05:03]} Nf6 {[%clk 00:05:03]} {[%emt 00:00:01]} 2. c4 {[%clk
00:05:03]} {[%emt 00:00:01]} g6 {[%clk 00:05:03]} {[%emt 00:00:01]} 3. Nc3
{[%clk 00:05:03]} Bg7 {[%clk 00:05:03]} {[%emt 00:00:03]} 4. e4 {[%clk
00:05:03]} {[%emt 00:00:01]} d6 {[%clk 00:05:03]} 5. Be2 {[%clk 00:05:03]}
{[%emt 00:00:02]} O-O {[%clk 00:05:02]} {[%emt 00:00:05]} 6. h3 {[%clk
00:05:03]} {[%emt 00:00:01]} Nc6 {[%clk 00:05:02]} {[%emt 00:00:02]} 7. d5
{[%clk 00:04:58]} {[%emt 00:00:09]} Nb4 {[%clk 00:05:02]} {[%emt 00:00:01]} 8.
Be3 {[%clk 00:04:37]} {[%emt 00:00:24]} c6 {[%clk 00:05:02]} {[%emt 00:00:03]}
9. Nf3 {[%clk 00:04:15]} {[%emt 00:00:24]} e6 {[%clk 00:05:02]} {[%emt
00:00:01]} 10. dxe6 {[%clk 00:04:10]} {[%emt 00:00:08]} Bxe6 {[%clk 00:05:02]}
{[%emt 00:00:02]} 11. Nd4 {[%clk 00:03:52]} {[%emt 00:00:21]} Re8 {[%clk
00:04:58]} {[%emt 00:00:07]} 12. O-O {[%clk 00:03:52]} {[%emt 00:00:02]} Na6
{[%clk 00:04:43]} {[%emt 00:00:18]} 13. Nb3 {[%clk 00:03:50]} {[%emt 00:00:05]}
d5 {[%clk 00:03:51]} {[%emt 00:00:55]} 14. cxd5 {[%clk 00:03:50]} {[%emt
00:00:03]} cxd5 {[%clk 00:03:51]} {[%emt 00:00:01]} 15. e5 {[%clk 00:03:37]}
{[%emt 00:00:16]} Ne4 {[%clk 00:03:51]} {[%emt 00:00:01]} 16. Bd4 {[%clk
00:02:58]} {[%emt 00:00:42]} Nb4 {[%clk 00:03:28]} {[%emt 00:00:26]} 17. Nxe4
{[%clk 00:02:41]} {[%emt 00:00:20]} dxe4 {[%clk 00:03:28]} {[%emt 00:00:02]} 18.
Nc5 {[%clk 00:02:38]} {[%emt 00:00:06]} Nc2 {[%clk 00:03:06]} {[%emt 00:00:24]}
19. Qxc2 {[%clk 00:02:24]} {[%emt 00:00:18]} Qxd4 {[%clk 00:03:06]} {[%emt
00:00:02]} 20. Nxe6 {[%clk 00:02:21]} {[%emt 00:00:06]} Rxe6 {[%clk 00:03:06]}
{[%emt 00:00:02]} 21. Qc7 {[%clk 00:02:15]} {[%emt 00:00:08]} Bxe5 {[%clk
00:03:01]} {[%emt 00:00:09]} 22. Qxb7 {[%clk 00:02:15]} {[%emt 00:00:02]} Rb8
{[%clk 00:03:01]} {[%emt 00:00:02]} 23. Qxb8+ {[%clk 00:01:16]} {[%emt
00:01:03]} Bxb8 {[%clk 00:03:01]} {[%emt 00:00:02]} 24. Rfd1 {[%clk 00:01:13]}
{[%emt 00:00:05]} Qe5 {[%clk 00:03:01]} {[%emt 00:00:02]} 25. Bc4 {[%clk
00:01:06]} {[%emt 00:00:10]} Rf6 {[%clk 00:02:59]} {[%emt 00:00:05]} 26. g3
{[%clk 00:00:59]} {[%emt 00:00:10]} Bc7 {[%clk 00:02:46]} {[%emt 00:00:16]} 27.
Rd5 {[%clk 00:00:52]} {[%emt 00:00:10]} Qxb2 {[%clk 00:02:45]} {[%emt
00:00:04]} 28. Rf1 {[%clk 00:00:52]} {[%emt 00:00:02]} Bb6 {[%clk 00:02:45]}
{[%emt 00:00:02]} 0-1

[Event "15e Open International de Quenza"]
[Site "Quenza"]
[Date "2026.07.05"]
[Round "3.1"]
[White "KOELLE, Tobias"]
[Black "BONELLI MAESTRACCI, Pierre Joseph"]
[Result "1-0"]
[TimeControl "5min+3s"]
[WhiteTitle "IM"]
[BlackTitle "-"]
[WhiteFideId "-"]
[BlackFideId "-"]
[WhiteElo "2613"]
[BlackElo "2205"]

1. d4 {[%clk 00:05:03]} Nf6 {[%clk 00:05:03]} 2. c4 {[%clk 00:05:03]} b6 {[%clk
00:05:03]} 3. f3 {[%clk 00:05:03]} {[%emt 00:00:01]} g6 {[%clk 00:04:00]}
{[%emt 00:01:06]} 4. e4 {[%clk 00:05:03]} {[%emt 00:00:01]} e5 {[%clk
00:03:32]} {[%emt 00:00:31]} 5. dxe5 {[%clk 00:05:03]} {[%emt 00:00:04]} Nh5
{[%clk 00:03:32]} 6. Nh3 {[%clk 00:05:02]} {[%emt 00:00:03]} Nc6 {[%clk
00:03:19]} {[%emt 00:00:17]} 7. Bg5 {[%clk 00:05:02]} {[%emt 00:00:03]} Be7
{[%clk 00:03:19]} {[%emt 00:00:01]} 8. Bh6 {[%clk 00:05:02]} Bf8 {[%clk
00:03:16]} {[%emt 00:00:06]} 9. Bxf8 {[%clk 00:05:02]} {[%emt 00:00:03]} Kxf8
{[%clk 00:03:16]} 10. Nc3 {[%clk 00:05:02]} {[%emt 00:00:04]} Nxe5 {[%clk
00:03:13]} {[%emt 00:00:05]} 11. Qd4 {[%clk 00:05:02]} {[%emt 00:00:02]} Qf6
{[%clk 00:03:09]} {[%emt 00:00:07]} 12. O-O-O {[%clk 00:05:00]} {[%emt
00:00:05]} Bb7 {[%clk 00:02:46]} {[%emt 00:00:27]} 13. Be2 {[%clk 00:04:48]}
{[%emt 00:00:14]} Nc6 {[%clk 00:02:26]} {[%emt 00:00:23]} 14. Qxd7 {[%clk
00:04:38]} {[%emt 00:00:13]} Nf4 {[%clk 00:02:10]} {[%emt 00:00:19]} 15. Nxf4
{[%clk 00:04:27]} {[%emt 00:00:14]} Qxf4+ {[%clk 00:02:10]} {[%emt 00:00:01]}
16. Qd2 {[%clk 00:04:24]} {[%emt 00:00:06]} Qxd2+ {[%clk 00:01:56]} {[%emt
00:00:16]} 17. Rxd2 {[%clk 00:04:24]} {[%emt 00:00:01]} Rd8 {[%clk 00:01:37]}
{[%emt 00:00:22]} 18. Rxd8+ {[%clk 00:04:24]} {[%emt 00:00:02]} Nxd8 {[%clk
00:01:37]} {[%emt 00:00:01]} 19. Kd2 {[%clk 00:04:24]} {[%emt 00:00:01]} Ke7
{[%clk 00:01:37]} {[%emt 00:00:03]} 20. Ke3 {[%clk 00:04:24]} {[%emt 00:00:02]}
c6 {[%clk 00:01:37]} {[%emt 00:00:03]} 21. f4 {[%clk 00:04:23]} {[%emt
00:00:04]} Ne6 {[%clk 00:01:36]} {[%emt 00:00:05]} 22. Bf3 {[%clk 00:04:23]}
{[%emt 00:00:01]} f6 {[%clk 00:01:20]} {[%emt 00:00:19]} 23. Rd1 {[%clk
00:04:17]} {[%emt 00:00:09]} g5 {[%clk 00:01:19]} {[%emt 00:00:04]} 24. g3
{[%clk 00:04:17]} {[%emt 00:00:02]} h5 {[%clk 00:01:19]} {[%emt 00:00:03]} 25.
e5 {[%clk 00:04:14]} {[%emt 00:00:07]} fxe5 {[%clk 00:01:11]} {[%emt 00:00:11]}
26. fxe5 {[%clk 00:04:14]} {[%emt 00:00:01]} g4 {[%clk 00:01:06]} {[%emt
00:00:08]} 27. Be2 {[%clk 00:03:56]} {[%emt 00:00:20]} h4 {[%clk 00:01:01]}
{[%emt 00:00:09]} 28. Bxg4 {[%clk 00:03:48]} {[%emt 00:00:11]} hxg3 {[%clk
00:01:01]} 29. hxg3 {[%clk 00:03:48]} {[%emt 00:00:03]} Rg8 {[%clk 00:01:01]}
{[%emt 00:00:01]} 30. Bxe6 {[%clk 00:03:48]} {[%emt 00:00:02]} Kxe6 {[%clk
00:01:01]} 31. Ne2 {[%clk 00:03:22]} {[%emt 00:00:28]} c5 {[%clk 00:00:40]}
{[%emt 00:00:24]} 32. Rd6+ {[%clk 00:03:05]} {[%emt 00:00:21]} Kxe5 {[%clk
00:00:40]} {[%emt 00:00:01]} 33. Rd7 {[%clk 00:03:05]} Bc6 {[%clk 00:00:40]}
{[%emt 00:00:02]} 34. Rxa7 {[%clk 00:03:05]} {[%emt 00:00:02]} Rf8 {[%clk
00:00:31]} {[%emt 00:00:12]} 35. Nf4 {[%clk 00:02:49]} {[%emt 00:00:18]} Rg8
{[%clk 00:00:31]} 36. Ne2 {[%clk 00:02:29]} {[%emt 00:00:23]} Rf8 {[%clk
00:00:30]} {[%emt 00:00:04]} 37. Ra6 {[%clk 00:02:10]} {[%emt 00:00:23]} Rf3+
{[%clk 00:00:28]} {[%emt 00:00:04]} 38. Kd2 {[%clk 00:02:10]} {[%emt 00:00:01]}
Rf2 {[%clk 00:00:16]} {[%emt 00:00:15]} 39. Rxb6 {[%clk 00:02:10]} {[%emt
00:00:03]} Bf3 {[%clk 00:00:16]} {[%emt 00:00:02]} 40. Ke3 {[%clk 00:02:10]}
{[%emt 00:00:01]} Rxe2+ {[%clk 00:00:12]} {[%emt 00:00:06]} 41. Kxf3 {[%clk
00:02:10]} {[%emt 00:00:01]} Rc2 {[%clk 00:00:12]} {[%emt 00:00:01]} 42. Rb3
{[%clk 00:02:01]} {[%emt 00:00:11]} Rxc4 {[%clk 00:00:12]} {[%emt 00:00:03]} 43.
Rc3 {[%clk 00:02:01]} {[%emt 00:00:02]} Ra4 {[%clk 00:00:10]} {[%emt 00:00:05]}
44. Rxc5+ {[%clk 00:01:35]} {[%emt 00:00:29]} Kd6 {[%clk 00:00:07]} {[%emt
00:00:06]} 45. Rc2 {[%clk 00:01:33]} {[%emt 00:00:05]} Rxa2 {[%clk 00:00:07]}
{[%emt 00:00:01]} 46. Re2 {[%clk 00:01:33]} Ra1 {[%clk 00:00:05]} {[%emt
00:00:05]} 47. g4 {[%clk 00:01:33]} {[%emt 00:00:02]} Rg1 {[%clk 00:00:05]}
{[%emt 00:00:03]} 48. Kf4 {[%clk 00:01:33]} {[%emt 00:00:02]} Kd7 {[%clk
00:00:05]} {[%emt 00:00:03]} 49. Kf5 {[%clk 00:01:33]} {[%emt 00:00:01]} Kd6
{[%clk 00:00:05]} 50. g5 {[%clk 00:01:33]} Kd7 {[%clk 00:00:05]} 51. Kf6 {[%clk
00:01:33]} {[%emt 00:00:02]} Kd8 {[%clk 00:00:05]} {[%emt 00:00:01]} 52. g6
{[%clk 00:01:33]} {[%emt 00:00:01]} Kd7 {[%clk 00:00:05]} 53. Kf7 {[%clk
00:01:33]} {[%emt 00:00:01]} Kd6 {[%clk 00:00:05]} 54. g7 {[%clk 00:01:33]}
{[%emt 00:00:02]} Rf1+ {[%clk 00:00:05]} 55. Kg8 {[%clk 00:01:33]} {[%emt
00:00:01]} Rg1 {[%clk 00:00:05]} {[%emt 00:00:01]} 56. b4 {[%clk 00:01:33]}
{[%emt 00:00:03]} Rg5 {[%clk 00:00:05]} {[%emt 00:00:01]} 57. Kh7 {[%clk
00:01:31]} {[%emt 00:00:05]} Rh5+ {[%clk 00:00:05]} {[%emt 00:00:03]} 58. Kg6
{[%clk 00:01:31]} {[%emt 00:00:01]} Rh4 {[%clk 00:00:05]} 59. Rg2 {[%clk
00:01:31]} Rxb4 {[%emt 00:00:02]} 60. g8=Q {[%clk 00:01:29]} {[%emt 00:00:04]}
1-0

[Event "15e Open International de Quenza"]
[Site "Quenza"]
[Date "2026.07.05"]
[Round "3.8"]
[White "TERRIEUX, Kevin"]
[Black "DELADERRIERE, Calypso"]
[Result "1-0"]
[TimeControl "5min+3s"]
[WhiteTitle "IM"]
[BlackTitle "-"]
[WhiteFideId "-"]
[BlackFideId "-"]
[WhiteElo "2451"]
[BlackElo "2074"]

1. e4 {[%clk 00:05:03]} {[%emt 00:00:02]} c5 {[%clk 00:05:03]} {[%emt
00:00:01]} 2. Nf3 {[%clk 00:05:03]} {[%emt 00:00:02]} e6 {[%clk 00:05:03]}
{[%emt 00:00:01]} 3. d4 {[%clk 00:05:03]} {[%emt 00:00:02]} cxd4 {[%clk
00:05:03]} {[%emt 00:00:02]} 4. Nxd4 {[%clk 00:05:03]} {[%emt 00:00:02]} a6
{[%clk 00:05:03]} {[%emt 00:00:01]} 5. Bd3 {[%clk 00:04:59]} {[%emt 00:00:07]}
Nf6 {[%clk 00:05:03]} {[%emt 00:00:02]} 6. O-O {[%clk 00:04:52]} {[%emt
00:00:09]} Qc7 {[%clk 00:05:03]} {[%emt 00:00:02]} 7. Be3 {[%emt 00:00:42]} d6
{[%clk 00:04:47]} {[%emt 00:00:01]} 8. Nc3 {[%clk 00:04:24]} {[%emt 00:00:11]}
Nbd7 {[%clk 00:04:45]} {[%emt 00:00:05]} 9. f4 {[%clk 00:04:22]} {[%emt
00:00:04]} g6 {[%clk 00:04:35]} {[%emt 00:00:13]} 10. f5 {[%clk 00:04:09]}
{[%emt 00:00:17]} e5 {[%clk 00:04:20]} {[%emt 00:00:18]} 11. Nb3 {[%clk
00:04:01]} {[%emt 00:00:10]} Bg7 {[%clk 00:04:10]} {[%emt 00:00:14]} 12. a4
{[%clk 00:03:53]} {[%emt 00:00:11]} b6 {[%clk 00:03:46]} {[%emt 00:00:27]} 13.
g4 {[%clk 00:03:40]} {[%emt 00:00:16]} Bb7 {[%clk 00:03:17]} {[%emt 00:00:31]}
14. g5 {[%clk 00:03:26]} {[%emt 00:00:17]} Nh5 {[%clk 00:03:17]} {[%emt
00:00:01]} 15. f6 {[%clk 00:03:26]} {[%emt 00:00:04]} Bf8 {[%clk 00:03:06]}
{[%emt 00:00:14]} 16. Nd5 {[%clk 00:03:26]} {[%emt 00:00:03]} Bxd5 {[%clk
00:03:03]} {[%emt 00:00:06]} 17. exd5 {[%clk 00:03:26]} {[%emt 00:00:01]} Nc5
{[%clk 00:03:02]} {[%emt 00:00:05]} 18. Be2 {[%clk 00:03:07]} {[%emt 00:00:21]}
O-O-O {[%clk 00:01:32]} {[%emt 00:01:33]} 19. Nd2 {[%clk 00:02:45]} {[%emt
00:00:25]} Qb7 {[%clk 00:01:04]} {[%emt 00:00:31]} 20. b4 {[%clk 00:02:14]}
{[%emt 00:00:33]} Nd7 {[%clk 00:01:01]} {[%emt 00:00:06]} 21. Ne4 {[%clk
00:02:01]} {[%emt 00:00:15]} Nf4 {[%clk 00:00:58]} {[%emt 00:00:06]} 22. Rxf4
{[%clk 00:01:39]} {[%emt 00:00:25]} exf4 {[%clk 00:00:58]} {[%emt 00:00:04]} 23.
Bxf4 {[%clk 00:01:39]} {[%emt 00:00:01]} h6 {[%clk 00:00:42]} {[%emt 00:00:20]}
24. Nxd6+ {[%clk 00:00:41]} {[%emt 00:01:01]} Bxd6 {[%clk 00:00:41]} {[%emt
00:00:04]} 25. Bxd6 {[%clk 00:00:41]} {[%emt 00:00:01]} Nxf6 {[%clk 00:00:21]}
{[%emt 00:00:23]} 26. Bg3 {[%clk 00:00:27]} {[%emt 00:00:16]} Rxd5 {[%clk
00:00:21]} {[%emt 00:00:03]} 27. Qf1 {[%clk 00:00:27]} {[%emt 00:00:01]} Rf5
{[%clk 00:00:20]} {[%emt 00:00:04]} 28. Qe1 {[%clk 00:00:19]} {[%emt 00:00:11]}
hxg5 {[%clk 00:04:06]} {[%emt 00:00:05]} 29. Qc3+ {[%clk 00:00:19]} {[%emt
00:00:01]} Kd7 {[%clk 00:00:13]} {[%emt 00:00:09]} 30. Rd1+ {[%clk 00:00:18]}
{[%emt 00:00:04]} Nd5 {[%clk 00:00:13]} 31. Qxh8 {[%clk 00:00:18]} {[%emt
00:00:02]} Ke6 {[%clk 00:00:11]} {[%emt 00:00:04]} 32. Qd4 {[%clk 00:00:17]}
{[%emt 00:00:04]} Qc6 {[%clk 00:00:11]} {[%emt 00:00:03]} 33. c4 {[%clk
00:00:17]} {[%emt 00:00:02]} Nxb4 {[%clk 00:00:11]} {[%emt 00:00:02]} 34. Bg4
{[%clk 00:00:14]} {[%emt 00:00:05]} Qc5 {[%clk 00:00:10]} {[%emt 00:00:06]} 35.
Re1+ {[%clk 00:00:14]} {[%emt 00:00:02]} 1-0

[Event "15e Open International de Quenza"]
[Site "Quenza"]
[Date "2026.07.05"]
[Round "3.3"]
[White "FRESSINET, Laurent"]
[Black "MULLON, Jean-Baptiste"]
[Result "1-0"]
[TimeControl "5min+3s"]
[WhiteTitle "GM"]
[BlackTitle "IM"]
[WhiteFideId "-"]
[BlackFideId "-"]
[WhiteElo "2565"]
[BlackElo "2198"]

1. d4 {[%clk 00:05:03]} d5 {[%clk 00:05:03]} {[%emt 00:00:03]} 2. c4 {[%clk
00:05:03]} {[%emt 00:00:02]} c6 {[%clk 00:05:03]} {[%emt 00:00:01]} 3. Nc3
{[%clk 00:05:03]} Nf6 {[%clk 00:05:03]} {[%emt 00:00:02]} 4. e3 {[%clk
00:05:03]} {[%emt 00:00:01]} e6 {[%clk 00:05:03]} {[%emt 00:00:02]} 5. Nf3
{[%clk 00:05:03]} {[%emt 00:00:01]} Nbd7 {[%clk 00:05:03]} {[%emt 00:00:02]} 6.
Qc2 {[%clk 00:05:03]} {[%emt 00:00:02]} Bd6 {[%clk 00:05:03]} {[%emt 00:00:04]}
7. Be2 {[%clk 00:05:03]} {[%emt 00:00:03]} b6 {[%clk 00:04:43]} {[%emt
00:00:23]} 8. O-O {[%clk 00:04:56]} {[%emt 00:00:10]} O-O {[%clk 00:04:39]}
{[%emt 00:00:07]} 9. e4 {[%clk 00:04:56]} {[%emt 00:00:02]} e5 {[%clk
00:03:54]} {[%emt 00:00:49]} 10. cxd5 {[%clk 00:04:35]} {[%emt 00:00:25]} cxd5
{[%clk 00:03:49]} {[%emt 00:00:08]} 11. exd5 {[%clk 00:04:34]} {[%emt
00:00:03]} exd4 {[%clk 00:02:39]} {[%emt 00:01:13]} 12. Nxd4 {[%clk 00:04:31]}
{[%emt 00:00:06]} Bb7 {[%clk 00:02:20]} {[%emt 00:00:23]} 13. Nc6 {[%clk
00:04:28]} {[%emt 00:00:06]} Qe8 {[%clk 00:01:35]} {[%emt 00:00:48]} 14. Nb5
{[%clk 00:03:28]} {[%emt 00:01:03]} Be5 {[%clk 00:00:25]} {[%emt 00:01:13]} 15.
Bf3 {[%clk 00:03:09]} {[%emt 00:00:22]} a6 {[%clk 00:00:24]} {[%emt 00:00:04]}
16. Nc3 {[%clk 00:03:05]} {[%emt 00:00:06]} Rc8 {[%clk 00:00:24]} {[%emt
00:00:03]} 17. Re1 {[%clk 00:02:03]} {[%emt 00:01:05]} Bxc6 {[%clk 00:00:06]}
{[%emt 00:00:22]} 18. dxc6 {[%clk 00:02:03]} {[%emt 00:00:02]} Bxh2+ {[%clk
00:00:06]} {[%emt 00:00:03]} 19. Kf1 {[%clk 00:02:03]} {[%emt 00:00:03]} Ne5
{[%clk 00:00:00]} {[%emt 00:00:06]} 1-0